Cogmind - Beta 11 X5 @@@ ROGUE MODE // 2021.06.16 @ 16:11:26 Player: Heavyrisk Result: Self-destructed Performance ------------- Evolutions (5) 2500 Regions Visited (11) 2200 Robots Destroyed (178) 890 Value Destroyed (7682) 7682 Prototype IDs (7) 140 Alien Tech Used (0) 0 Bonus (2703) 2703 TOTAL SCORE: 16115 Bonus ------- High Alert Combat Kills 1087 Follower Combat Kills 123 Entered Garrisons 600 Used RIF Installer 1500 Friendly Fire -607 Cogmind --------- Core Integrity 894/1000 Matter 300/300 Energy 310/310 System Corruption 3% Temperature Cool (0) Movement Walking (200) Ox1 Location -5/Factory Parts ------- > --- POWER (1) -------- Fission Core > --- PROPULSION (6) --- Carbon-fiber Leg Carbon-fiber Leg Flexi-carbon Leg > --- UTILITY (8) ------ High-capacity Storage Unit Enhanced Optical Array Advanced Signal Interpreter Improved Medium Armor Plating Relay Coupler [NC] (15) Relay Coupler [Sentry] (14) Relay Coupler [Hunter] (13) > --- WEAPON (2) ------- Axe Power Sword > --- INVENTORY (20) --- Fission Core Micro Fission Core Advanced Heat Sink Structural Scanner Improved Transmission Jammer Heavy Reactive Plating Improved Shock Absorption System Relay Coupler [Grunt] (33) Relay Coupler [Grunt] (22) Relay Coupler [Grunt] (20) Relay Coupler [Sentry] (18) Relay Coupler [Sentry] (23) Advanced Plasma Cannon Heavy Shock Bomb Launcher Remote Datajack Improved Remote Datajack Peak State ------------ > --- POWER ------------ Fission Core > --- PROPULSION ------- Carbon-fiber Leg Carbon-fiber Leg Carbon-fiber Leg Flexi-carbon Leg Flexi-carbon Leg Flexi-carbon Leg > --- UTILITY ---------- High-capacity Storage Unit Enhanced Optical Array Advanced Signal Interpreter Heavy Reactive Plating Relay Coupler [Brawler] Relay Coupler [Sentry] Relay Coupler [Hunter] > --- WEAPON ----------- Remote Datajack Power Sword > --- INVENTORY -------- Reinforced Deuterium Engine Fission Core Carbon-fiber Leg Advanced Heat Sink Structural Scanner Improved Transmission Jammer Improved Light Armor Plating Relay Coupler [NC] Relay Coupler [Grunt] Relay Coupler [Grunt] Relay Coupler [Grunt] Relay Coupler [Sentry] Relay Coupler [Sentry] Relay Coupler [Sentry] Heavy Plasma Cannon Missile Launcher Remote Datajack Axe [Rating: 77] Favorites ----------- Power Angular Momentum Engine Engine Angular Momentum Engine Power Core Light Nuclear Core Propulsion Carbon-fiber Leg Treads Armored Treads Leg Carbon-fiber Leg Utility High-capacity Storage Unit Device Heat Sink Storage High-capacity Storage Unit Processor Advanced Visual Processing Unit Hackware Relay Coupler [Sentry] Protection Light Armor Plating Weapon Advanced Beam Cannon Energy Gun Advanced Beam Rifle Energy Cannon Advanced Beam Cannon Ballistic Gun Light Assault Rifle Ballistic Cannon Gauss Cannon Launcher Missile Launcher Special Weapon Remote Datajack Slashing Weapon Axe Special Melee Weapon Improved Datajack Build | -11 -10 -9 -8 -8 -8 -8 -7 -6 -6 -6 -5 ------- Run | Scr Mat Mat Mat Gar Mat Gar Fac Fac Gar Fac Fac Slots Evolved 10 | . . 2 2 . . . 2 2 . . 2 Power . | . . . . . . . . . . . . Propulsion 4 | . . . 2 . . . . 1 . . 1 Utility 6 | . . 2 . . . . 2 1 . . 1 Weapon . | . . . . . . . . . . . . Parts Attached 259 | 6 5 37 7 21 32 13 18 15 27 59 19 Power 24 | 1 2 3 2 3 2 1 2 1 1 6 . Engine 15 | 1 1 2 2 1 2 . . 1 1 4 . Core 9 | . 1 1 . 2 . 1 2 . . 2 . Reactor . | . . . . . . . . . . . . Propulsion 65 | 2 . 9 2 6 8 1 4 4 6 17 6 Treads 13 | 2 . 9 2 . . . . . . . . Leg 52 | . . . . 6 8 1 4 4 6 17 6 Wheel . | . . . . . . . . . . . . Hover . | . . . . . . . . . . . . Flight . | . . . . . . . . . . . . Utility 81 | 1 1 11 3 10 9 1 8 6 5 18 8 Device 38 | . 1 7 2 6 3 . 4 3 3 7 2 Storage 4 | 1 . 2 . . 1 . . . . . . Processor 4 | . . . . . . . 2 . . 2 . Hackware 11 | . . . . . 2 1 1 . 1 4 2 Protection 24 | . . 2 1 4 3 . 1 3 1 5 4 Artifact . | . . . . . . . . . . . . Weapon 89 | 2 2 14 . 2 13 10 4 4 15 18 5 Energy Gun 13 | 1 1 2 . . 5 4 . . . . . Energy Cannon 16 | . . 7 . 2 2 . . . . 4 1 Ballistic Gun 5 | 1 1 3 . . . . . . . . . Ballistic Cannon 10 | . . . . . . . . . 9 1 . Launcher 5 | . . 1 . . . 1 . . 3 . . Special Weapon 8 | . . . . . . . . . . 6 2 Impact Weapon . | . . . . . . . . . . . . Slashing Weapon 22 | . . 1 . . 4 2 2 2 2 7 2 Piercing Weapon . | . . . . . . . . . . . . Special Melee Weapon 10 | . . . . . 2 3 2 2 1 . . Unidentified Prototypes 6 | . . 3 . . 3 . . . . . . Corrupted Parts 1 | . . . . . . . . . . 1 . System Corruption 1 | . . . . . . . . . . 1 . Parts Lost 53 | . . 1 1 5 9 1 . 5 9 15 7 Power 6 | . . . 1 2 1 . . . 1 1 . Propulsion 28 | . . . . . 5 1 . 3 3 10 6 Utility 14 | . . 1 . 2 2 . . 2 3 3 1 Weapon 5 | . . . . 1 1 . . . 2 1 . Highest Loss Streak 9 | . . 1 1 2 9 1 . 4 4 4 7 Average Slot Usage (%) 97 | . 87 98 100 99 98 99 99 99 97 95 97 Engine 4 | . 5 7 9 5 6 1 . 4 6 5 . Core 3 | . 8 3 . 3 2 7 7 1 . . 5 Treads 7 | . 28 21 36 4 . . . . . . . Leg 23 | . . . . 31 35 35 30 33 33 32 33 Device 11 | . 2 24 18 19 7 9 8 4 9 9 2 Storage 8 | . 14 11 9 9 9 9 7 6 6 6 5 Processor 3 | . . . . . . . 7 7 6 6 11 Hackware 11 | . . . . . 14 18 20 19 12 16 16 Protection 4 | . . 8 9 7 5 . 1 5 8 2 6 Energy Gun 2 | . 14 1 . . 10 6 . . . . . Energy Cannon 6 | . . 19 18 18 3 . . . . 2 . Ballistic Cannon 1 | . . . . . . . . . 12 2 . Slashing Weapon 3 | . . . . . 2 5 9 6 . 4 6 Special Melee Weapon 1 | . . . . . . 5 4 5 . . . Naked Turns . | . . . . . . . . . . . . Heaviest Build 91 | 11 15 41 41 42 60 55 59 67 79 87 91 Greatest Support 105 | 40 40 40 80 80 62 55 65 87 87 90 105 Greatest Overweight (x) 1 | . . 1 . . 1 1 . . . 1 1 Average Overweight (x) . | . . . . . . . . . . . . Largest Inventory Capacity 20 | 8 8 15 15 15 20 20 20 20 20 20 20 Average Capacity 16 | 7 8 10 15 15 19 20 20 20 20 20 20 Most Carried 20 | 4 8 15 15 15 20 20 20 20 20 20 20 Average Carried 16 | 2 7 9 14 14 17 19 19 19 18 19 19 Final Capacity 20 | 8 8 15 15 15 20 20 20 20 20 20 20 Final Carried 20 | 4 8 15 15 15 19 20 20 19 20 20 17 Class Distribution -------------------- 56% | Bothacker-Mutant 27% | Scavenger-Mutant 15% | Mutant Dominant Class ---------------- Mutant | -10/Materials Scavenger-Mutant | -9/Materials Mutant | -8/Materials Bothacker-Mutant | -8/Garrison Bothacker-Mutant | -8/Materials Bothacker-Mutant | -8/Garrison Bothacker-Mutant | -7/Factory Bothacker-Mutant | -6/Factory Bothacker-Mutant | -6/Garrison Bothacker-Mutant | -6/Factory Bothacker-Mutant | -5/Factory Resources | -11 -10 -9 -8 -8 -8 -8 -7 -6 -6 -6 -5 ----------- Run | Scr Mat Mat Mat Gar Mat Gar Fac Fac Gar Fac Fac Matter Collected 3663 | 200 145 377 65 210 265 148 125 169 843 875 241 Remotely 25 | . 25 . . . . . . . . . . Salvage Created 7438 | . 322 1910 431 807 779 331 157 127 787 1311 476 Parts 362 | . 15 93 18 36 45 25 9 7 31 57 26 Haulers Intercepted 7 | . . 5 . . 2 . . . . . . Recyclers Shooed 5 | . 1 2 . . 2 . . . . . . Parts Field Recycled . | . . . . . . . . . . . . Retrieved Matter . | . . . . . . . . . . . . Parts Self-Destructed . | . . . . . . . . . . . . Prevented . | . . . . . . . . . . . . Kills | -11 -10 -9 -8 -8 -8 -8 -7 -6 -6 -6 -5 ------- Run | Scr Mat Mat Mat Gar Mat Gar Fac Fac Gar Fac Fac Combat Hostiles Destroyed 151 | . 9 34 10 18 14 10 2 1 23 22 8 Melee 30 | . . . . . 4 4 2 1 1 11 7 Guns 23 | . 9 4 . . 7 3 . . . . . Cannons 74 | . . 25 10 15 2 . . . 15 6 1 AOE 16 | . . 3 . . . 3 . . 7 3 . Classes Destroyed 14 | . 3 5 1 . 1 . 2 2 . . . Worker 6 | . . 2 1 . 3 . . . . . . Tunneler 1 | . . . . . . . . 1 . . . Hauler 7 | . . 5 . . 2 . . . . . . Recycler 7 | . 1 4 . . 1 . . . . . 1 Mechanic 1 | . . . . . . . 1 . . . . Operator 2 | . . . . . . . . 1 . 1 . Watcher 2 | . . . . . 1 . . 1 . . . Swarmer 38 | . 3 4 3 3 5 6 . . 9 . 5 Grunt 58 | . 6 17 4 10 4 3 . . 5 9 . Brawler 5 | . . 2 1 . . . . . 1 1 . Duelist 6 | . . 1 . 1 1 . . . 2 1 . Sentry 30 | . . 10 1 3 3 2 1 1 4 4 1 Hunter 6 | . . . 1 1 1 . . . . 3 . Programmer 9 | . . . . . . . 1 . 2 4 2 Best Kill Streak 6 | . 3 5 4 6 5 3 1 2 4 4 3 Combat Bots Only 6 | . 3 5 4 6 3 3 1 1 4 4 3 Max Kills in Single Turn 3 | . 1 3 2 1 2 3 1 1 3 2 1 Gunslinging . | . . . . . . . . . . . . Exploded 3 | . . 3 . . . 3 . . 3 2 . Melee 1 | . . . . . 1 1 1 1 1 1 1 Uniques/NPCs Destroyed . | . . . . . . . . . . . . Combat | -11 -10 -9 -8 -8 -8 -8 -7 -6 -6 -6 -5 -------- Run | Scr Mat Mat Mat Gar Mat Gar Fac Fac Gar Fac Fac Damage Taken 11711 | . 453 1001 826 1125 1357 98 179 1169 1591 2871 1041 Core 1213 | . 99 74 22 48 167 29 25 201 160 282 106 Absorbed by Shields 5 | . . . . . . . . . 5 . . Core Remaining (%) 68 | 100 60 81 . . . 51 96 . . 24 . Volleys Fired 398 | 4 44 91 36 55 33 8 . . 63 55 9 Largest 2 | 2 2 2 2 2 2 2 . . 2 2 1 Hottest 180 | 70 85 136 136 136 136 122 . . 96 180 98 Shots Fired 706 | 8 71 181 72 106 66 14 . . 98 81 9 Gun 156 | 8 71 30 . . 34 13 . . . . . Cannon 505 | . . 150 72 106 32 . . . 90 53 2 Launcher 10 | . . 1 . . . 1 . . 8 . . Special 35 | . . . . . . . . . . 28 7 Kinetic 162 | 4 44 2 . . . . . . 90 22 . Thermal 499 | 4 27 178 72 106 66 13 . . . 31 2 Explosive 10 | . . 1 . . . 1 . . 8 . . Electromagnetic . | . . . . . . . . . . . . Robot Hit Streak 28 | 3 8 23 28 11 13 8 . . 14 12 5 Robot Miss Streak 7 | 1 7 6 3 5 3 3 . . 3 3 1 Penetration Max . | . . . . . . . . . . . . Secondary Targets . | . . . . . . . . . . . . Shots Hit Robots 609 | 6 56 126 45 62 71 18 13 20 73 90 29 Core Hits 284 | 1 38 64 16 26 27 11 3 4 37 47 10 Critical Kills 5 | . . 1 . 2 1 . . . . 1 . Critical Parts Destroyed . | . . . . . . . . . . . . Critical Strikes 14 | . . 1 . 2 2 . . . 4 4 1 Meltdown 5 | . . 1 . 2 1 . . . . 1 . Blast 5 | . . . . . . . . . 4 1 . Sever 4 | . . . . . 1 . . . . 2 1 Melee Attacks 213 | . . 1 . . 33 17 21 32 15 56 38 Impact . | . . . . . . . . . . . . Slashing 179 | . . 1 . . 28 11 14 21 10 56 38 Piercing . | . . . . . . . . . . . . Sneak Attacks 63 | . . . . . 7 8 10 12 1 22 3 Combat Hostiles 36 | . . . . . 2 7 3 5 1 17 1 Follow-up Attacks 9 | . . . . . 3 . . . . 4 2 Damage Inflicted 19139 | 58 533 2811 1033 1314 2051 994 487 1236 2938 4520 1164 Guns 1525 | 55 529 361 . . 480 100 . . . . . Cannons 7449 | . . 2120 1024 1314 473 . . . 1629 849 40 Explosions 1434 | . . 310 . . . 136 . . 540 448 . Melee 8585 | . . . . . 1072 758 481 1205 769 3179 1121 Ramming 146 | 3 4 20 9 . 26 . 6 31 . 44 3 Kinetic 2167 | 30 265 14 . . . . . . 1629 229 . Thermal 6807 | 25 264 2467 1024 1314 953 100 . . . 620 40 Explosive 986 | . . 310 . . . 136 . . 540 . . Electromagnetic 448 | . . . . . . . . . . 448 . Impact . | . . . . . . . . . . . . Slashing 8585 | . . . . . 1072 758 481 1205 769 3179 1121 Piercing . | . . . . . . . . . . . . Highest Corruption 13 | . . 1 . . . . 2 1 3 13 3 Average Corruption 3 | . . 1 . . . . 2 1 2 5 2 Corruption Purged . | . . . . . . . . . . . . Effects 79 | . . 1 . . . . 2 . 15 59 2 Message Errors 26 | . . . . . . . . . 6 19 1 Matter Fused 13 | . . . . . . . . . 2 10 1 Heat Flow Errors 13 | . . . . . . . 2 . 1 10 . Energy Discharges 11 | . . 1 . . . . . . 3 7 . Parts Rejected 2 | . . . . . . . . . . 2 . Data Loss (minor) 10 | . . . . . . . . . 3 7 . Data Loss (major) 3 | . . . . . . . . . . 3 . Weapon Failures 1 | . . . . . . . . . . 1 . Overload Shots . | . . . . . . . . . . . . Overflow Damage 1691 | . . 58 . . 281 114 73 365 156 611 33 Projectiles 64 | . . 42 . . 14 . . . 8 . . Explosions 45 | . . 16 . . . 2 . . 27 . . Melee 1582 | . . . . . 267 112 73 365 121 611 33 Knockbacks 12 | . . . . . . . . . 7 5 . Impact 1 | . . . . . . . . . . 1 . Kinetic 11 | . . . . . . . . . 7 4 . Secondary . | . . . . . . . . . . . . Self-Inflicted Damage 81 | . . . . . . 11 . . . 70 . Shots 3 | . . . . . . 1 . . . 2 . Rammed 7 | 1 3 2 1 . . . . . . . . Targets Rammed 23 | 1 3 3 1 . 4 . 1 3 . 6 1 Kicked 15 | . . . . . 4 . 1 3 . 6 1 Crushed 1 | . . 1 . . . . . . . . . Highest Temperature 324 | 80 293 204 207 252 324 15 194 33 222 228 76 Average Temperature 72 | 40 124 42 63 100 93 6 87 19 95 64 37 Received Heat Transfer 2868 | . 213 351 351 549 261 27 30 216 381 480 9 Effects 1 | . . . . . 1 . . . . . . Interference 1 | . . . . . 1 . . . . . . Siege Activations . | . . . . . . . . . . . . Robots Corrupted 1 | . . . . . . . . . . 1 . Combat Hostiles 1 | . . . . . . . . . . 1 . Parts Fried 3 | . . . . . . . . . . 3 . Impact Corruptions . | . . . . . . . . . . . . Robots Melted 7 | . . 2 . 3 1 . . . . 1 . Combat Hostiles 7 | . . 2 . 3 1 . . . . 1 . Parts Melted 30 | . 1 8 5 9 3 . . . . 4 . Heat Transferred 11559 | 74 325 4177 1850 2269 1739 175 . . . 900 50 Parts Sabotaged . | . . . . . . . . . . . . Parts Stolen . | . . . . . . . . . . . . Parts Stripped . | . . . . . . . . . . . . Power Chain Reactions . | . . . . . . . . . . . . Missiles Intercepted . | . . . . . . . . . . . . Alert | -11 -10 -9 -8 -8 -8 -8 -7 -6 -6 -6 -5 ------- Run | Scr Mat Mat Mat Gar Mat Gar Fac Fac Gar Fac Fac Peak Influence 1106 | . 155 710 507 784 534 742 570 490 1106 779 146 Initial 580 | . . 29 139 209 382 301 389 207 327 580 107 Average 404 | . 71 395 302 498 445 520 372 121 767 471 101 Maximum Alert Level 4 | . . 3 2 3 2 3 2 2 4 3 . Low Security (%) 22 | 100 100 15 23 . . . 4 86 . 11 100 Level 1 25 | . . 43 58 32 19 27 45 2 10 16 . Level 2 42 | . . 37 17 57 80 53 49 10 23 66 . Level 3 9 | . . 3 . 9 . 19 . . 61 5 . Level 4 . | . . . . . . . . . 4 . . Level 5 . | . . . . . . . . . . . . High Security . | . . . . . . . . . . . . Max Security . | . . . . . . . . . . . . Squads Dispatched 25 | . 1 4 2 . 1 . 4 5 . 8 . Investigation 5 | . . 2 2 . . . . . . 1 . Extermination 5 | . . . . . . . 1 1 . 3 . Reinforcement 13 | . 1 2 . . 1 . 3 3 . 3 . Assault 2 | . . . . . . . . 1 . 1 . Garrison . | . . . . . . . . . . . . Intercept . | . . . . . . . . . . . . Construction Impeded . | . . . . . . . . . . . . Haulers Reinforced 1 | . . . . . . . . . . 1 . Cargo Convoy Interrupts 2 | . . . . . . . 1 1 . . . Stealth | -11 -10 -9 -8 -8 -8 -8 -7 -6 -6 -6 -5 --------- Run | Scr Mat Mat Mat Gar Mat Gar Fac Fac Gar Fac Fac Distress Signals 19 | . 1 8 . . 4 . . 2 . 3 1 Communications Jammed 6 | . . . . . . . . . . 6 . Distress Signals 6 | . . . . . . . . . . 6 . Times Spotted 285 | . 12 52 18 23 32 13 9 37 25 53 11 Peak Tracking Total 15 | . 4 6 5 7 5 6 3 15 6 6 5 Tactical Retreats 26 | . . 1 1 4 1 3 . 5 3 6 2 Traps | -11 -10 -9 -8 -8 -8 -8 -7 -6 -6 -6 -5 ------- Run | Scr Mat Mat Mat Gar Mat Gar Fac Fac Gar Fac Fac Traps Triggered 19 | . . 2 1 4 . 4 . 1 1 6 . Indirectly . | . . . . . . . . . . . . Trap Hack Attempts 59 | . . . . . 1 58 . . . . . Triggered . | . . . . . . . . . . . . Disarmed 7 | . . . . . 7 . . . . . . Reprogrammed 2 | . . . . . . 2 . . . . . Reused 2 | . . . . . . 2 . . . . . Traps Extracted . | . . . . . . . . . . . . Installed . | . . . . . . . . . . . . Triggered 5 | . . . . . . 2 1 1 . 1 . Machines | -11 -10 -9 -8 -8 -8 -8 -7 -6 -6 -6 -5 ---------- Run | Scr Mat Mat Mat Gar Mat Gar Fac Fac Gar Fac Fac Machines Disabled 19 | . . 3 . 2 1 2 . 1 6 4 . Max in Single Turn 2 | . . 2 . 1 1 1 . . 1 2 . Garrison Access 4 | . . . . . . . 1 1 . 1 1 Garrison Relay 7 | . . . . 2 . 2 . . 3 . . Machines Sabotaged . | . . . . . . . . . . . . Garrisons Compromised 1 | . . . . . . . 1 . . . . Overloaded Fab Kills . | . . . . . . . . . . . . Fab Network Shutdowns . | . . . . . . . . . . . . Hacking | -11 -10 -9 -8 -8 -8 -8 -7 -6 -6 -6 -5 --------- Run | Scr Mat Mat Mat Gar Mat Gar Fac Fac Gar Fac Fac Machines Accessed 44 | . 3 11 2 . 8 . 7 3 . 7 3 Terminals 23 | . 1 8 . . 5 . 4 1 . 3 1 Fabricators 3 | . . . . . . . 1 . . 1 1 Repair Stations 6 | . . 2 . . 2 . 1 . . 1 . Recycling Units 3 | . 2 . . . . . . . . 1 . Scanalyzers 2 | . . 1 1 . . . . . . . . Garrison Access 7 | . . . 1 . 1 . 1 2 . 1 1 Total Hacks 102 | . 5 28 8 . 16 . 19 3 . 15 8 Successful 65 | . 3 16 8 . 11 . 13 2 . 6 6 Failed 37 | . 2 12 . . 5 . 6 1 . 9 2 Catastrophic 10 | . . 1 . . 1 . 4 1 . 2 1 Database Lockouts . | . . . . . . . . . . . . Manual 49 | . 1 20 1 . 8 . 8 1 . 6 4 Terminals 56 | . 2 20 . . 11 . 13 1 . 5 4 Fabricators 6 | . . . . . . . 2 . . 2 2 Repair Stations 14 | . . 5 . . 4 . 2 . . 3 . Recycling Units 4 | . 3 . . . . . . . . 1 . Scanalyzers 10 | . . 3 7 . . . . . . . . Garrison Access 12 | . . . 1 . 1 . 2 2 . 4 2 Terminal Hacks 17 | . 1 7 . . 3 . 6 . . . . Part Schematic 4 | . . 2 . . . . 2 . . . . Robot Analysis 1 | . . 1 . . . . . . . . . Unreport Threat 4 | . . 2 . . . . 2 . . . . Locate Traps 2 | . . . . . 1 . 1 . . . . Disarm Traps 1 | . . . . . 1 . . . . . . Hauler Manifests 1 | . . . . . . . 1 . . . . Zone Layout 4 | . 1 2 . . 1 . . . . . . Fabricator Hacks 5 | . . . . . . . 2 . . 1 2 Load Schematic 3 | . . . . . . . 1 . . 1 1 Build 2 | . . . . . . . 1 . . . 1 Repair Station Hacks 11 | . . 4 . . 4 . 1 . . 2 . Scan Component 6 | . . 2 . . 2 . 1 . . 1 . Repair 5 | . . 2 . . 2 . . . . 1 . Recycling Unit Hacks 2 | . 2 . . . . . . . . . . Report Inventory 2 | . 2 . . . . . . . . . . Scanalyzer 8 | . . 2 6 . . . . . . . . Insert Component 4 | . . 1 3 . . . . . . . . Analyze 4 | . . 1 3 . . . . . . . . Garrison Access Hacks 9 | . . . 1 . 1 . 1 2 . 2 2 Unlock Access 3 | . . . 1 . 1 . . 1 . . . Seal Access 4 | . . . . . . . 1 1 . 1 1 Coupler Status 2 | . . . . . . . . . . 1 1 Unauthorized Hacks 13 | . . 3 1 . 3 . 3 . . 1 2 Terminals 9 | . . 2 . . 3 . 2 . . . 2 Track 1 | . . . . . . . . . . . 1 Assimilate 1 | . . . . . 1 . . . . . . Botnet 7 | . . 2 . . 2 . 2 . . . 1 Fabricators . | . . . . . . . . . . . . Repair Stations . | . . . . . . . . . . . . Recycling Units . | . . . . . . . . . . . . Scanalyzers 2 | . . 1 1 . . . . . . . . Extract 2 | . . 1 1 . . . . . . . . Garrison Access 2 | . . . . . . . 1 . . 1 . Restock 2 | . . . . . . . 1 . . 1 . Data Cores Recovered . | . . . . . . . . . . . . Used . | . . . . . . . . . . . . Hacking Detections 34 | . 3 10 1 . 4 . 6 1 . 7 2 Full Trace Events 1 | . . . . . . . . . . 1 . Feedback Events . | . . . . . . . . . . . . Feedback Blocked . | . . . . . . . . . . . . Robot Schematics Acquired . | . . . . . . . . . . . . Robots Built . | . . . . . . . . . . . . Matter . | . . . . . . . . . . . . Time . | . . . . . . . . . . . . Total Robot Build Rating . | . . . . . . . . . . . . Part Schematics Acquired 12 | . . 6 4 . . . 2 . . . . Parts Built 4 | . . . . . . . 2 . . . 2 Matter 292 | . . . . . . . 146 . . . 146 Time 109 | . . . . . . . 36 . . . 73 Total Part Build Rating 12 | . . . . . . . 6 . . . 6 Parts Repaired 5 | . . 2 . . 2 . . . . 1 . Time 184 | . . 77 . . 57 . . . . 50 . Parts Recycled . | . . . . . . . . . . . . Recycled Matter . | . . . . . . . . . . . . Retrieved Matter . | . . . . . . . . . . . . Retrieved Components . | . . . . . . . . . . . . Parts Scanalyzed 4 | . . 1 3 . . . . . . . . Part Schematics Acquired 4 | . . 1 3 . . . . . . . . Parts Damaged . | . . . . . . . . . . . . Bothacking | -11 -10 -9 -8 -8 -8 -8 -7 -6 -6 -6 -5 ------------ Run | Scr Mat Mat Mat Gar Mat Gar Fac Fac Gar Fac Fac Used RIF Installer 3 | . . . . 1 . 1 . . 1 . . Hotswap 1 | . . . . . . 1 . . . . . Command Fork 1 | . . . . . . . . . 1 . . Robots Hacked 40 | . . . . . 2 4 5 5 3 18 3 Non-combat 13 | . . . . . . . 4 1 . 6 2 Combat 27 | . . . . . 2 4 1 4 3 12 1 Robot Hacks Applied 52 | . . . . . 4 5 6 6 3 22 6 no_distress 2 | . . . . . . . . . . 1 1 generate_echo 1 | . . . . . . . . . . . 1 find_chute 1 | . . . . . . . 1 . . . . find_fabricator 1 | . . . . . . . . . . . 1 drop_inventory 3 | . . . . . . . 1 . . . 2 locate_stockpiles 1 | . . . . . . . 1 . . . . ignore_parts 3 | . . . . . . . 1 . . 2 . purge_threat 4 | . . . . . . . . 1 . 3 . reprogram_traps 1 | . . . . . . . . 1 . . . block_reporting 1 | . . . . . . . . . . 1 . find_shortcuts 1 | . . . . . . 1 . . . . . find_garrison 1 | . . . . . 1 . . . . . . overload_power 2 | . . . . . . . . 1 . 1 . amplify_resonance 1 | . . . . . . . . . . 1 . wipe_record 2 | . . . . . 1 1 . . . . . reboot_system 12 | . . . . . 1 1 1 1 . 7 1 overwrite_iff 13 | . . . . . 1 2 . 2 3 5 . streamctrl_low 1 | . . . . . . . 1 . . . . formatsys_high 1 | . . . . . . . . . . 1 . Relay Couplers Released 41 | . . . . 9 . 9 5 . 10 7 1 Machine Destruction 34 | . . . . 9 . 9 2 . 10 3 1 Programmers 7 | . . . . . . . 3 . . 4 . Attached 11 | . . . . . 2 1 1 . 1 4 2 Robots Rewired . | . . . . . . . . . . . . Allies Hacked 1 | . . . . . . . 1 . . . . Hacks Repelled . | . . . . . . . . . . . . Allies | -11 -10 -9 -8 -8 -8 -8 -7 -6 -6 -6 -5 -------- Run | Scr Mat Mat Mat Gar Mat Gar Fac Fac Gar Fac Fac Total Allies 37 | . . . . . 1 2 19 5 3 7 . Largest Group 14 | . . . . . 1 1 14 3 1 2 . Highest-Rated Group 583 | . . . . . 16 16 583 93 29 58 . Highest-Rated Ally 74 | . . . . . 16 16 74 31 29 29 . Total Orders 2 | . . . . . . . 2 . . . . FOLLOW 1 | . . . . . . . 1 . . . . AID 1 | . . . . . . . 1 . . . . Ally Attacks 118 | . . . . . 1 7 52 23 11 24 . Total Damage 2579 | . . . . . 16 120 1567 364 173 339 . Kills 24 | . . . . . . . 20 3 1 . . Allies Corrupted . | . . . . . . . . . . . . Allies Melted 1 | . . . . . . . . . . 1 . Intel | -11 -10 -9 -8 -8 -8 -8 -7 -6 -6 -6 -5 ------- Run | Scr Mat Mat Mat Gar Mat Gar Fac Fac Gar Fac Fac Robot Analysis Total 1 | . . 1 . . . . . . . . . Derelict Logs Recovered . | . . . . . . . . . . . . Drone Launches . | . . . . . . . . . . . . Drone Recoveries . | . . . . . . . . . . . . Exploration | -11 -10 -9 -8 -8 -8 -8 -7 -6 -6 -6 -5 ------------- Run | Scr Mat Mat Mat Gar Mat Gar Fac Fac Gar Fac Fac Turns Passed 12472 | 128 592 2404 492 811 987 714 1497 775 1147 2337 588 Spaces Moved 6515 | 70 287 1018 197 457 513 306 870 533 689 1274 301 Core 8 | 8 . . . . . . . . . . . Treads 1614 | 62 287 1018 197 50 . . . . . . . Legs 4893 | . . . . 407 513 306 870 533 689 1274 301 Wheels . | . . . . . . . . . . . . Hover . | . . . . . . . . . . . . Flight . | . . . . . . . . . . . . Fastest Speed 50 | 50 160 160 170 120 120 122 120 120 120 120 120 Average Speed 133 | 147 160 176 170 125 122 125 121 120 121 121 120 Slowest Speed 270 | 160 160 270 170 170 203 203 122 122 122 202 200 Overloaded Moves . | . . . . . . . . . . . . Propulsion Burnouts . | . . . . . . . . . . . . Robots Hopped . | . . . . . . . . . . . . Cave-ins Triggered . | . . . . . . . . . . . . Exploration Rate (%) 38 | 5 46 90 21 48 45 46 29 16 80 24 8 Regions Visited 11 Branch Regions . Pre-discovered Areas . | . . . . . . . . . . . . Known Exits Taken 5 | . . . 1 . 1 . 1 1 . 1 . Unknown Exits Taken 3 | 1 1 1 . . . . . . . . . Scrap Searched . | . . . . . . . . . . . . Spaces Dug 39 | . . 1 . . . 5 7 7 3 13 3 Terrain Destroyed 118 | . . 32 . . . 5 7 7 43 21 3 Melee 24 | . . 1 . . . . 7 7 . 6 3 Projectile 18 | . . . . . . . . . 3 15 . AOE 76 | . . 31 . . . 5 . . 40 . . Terrain Rammed . | . . . . . . . . . . . . Walls Destroyed . | . . . . . . . . . . . . Machines Disabled . | . . . . . . . . . . . . Actions | -11 -10 -9 -8 -8 -8 -8 -7 -6 -6 -6 -5 --------- Run | Scr Mat Mat Mat Gar Mat Gar Fac Fac Gar Fac Fac Total 9292 | 84 356 1455 285 595 757 596 1284 623 872 1912 473 Wait 1498 | . 10 235 28 22 114 166 346 20 56 418 83 Move 6504 | 69 286 1017 197 455 513 304 869 533 687 1273 301 Hop . | . . . . . . . . . . . . Pick Up 160 | 4 4 28 8 15 20 5 15 12 13 26 10 Fast Attach 48 | 6 2 10 2 5 5 2 1 2 1 10 2 Attach 64 | . . 2 4 8 7 . 2 6 9 18 8 Detach 10 | . . 2 . 1 . 1 . . . 3 3 Swap 147 | . 3 25 1 8 20 11 15 7 17 31 9 Drop 148 | . 4 41 8 20 11 4 15 8 5 20 12 Fire 398 | 4 44 91 36 55 33 8 . . 63 55 9 Melee 201 | . . 1 . . 29 17 20 32 15 52 35 Ram . | . . . . . . . . . . . . Kick 15 | . . . . . 4 . 1 3 . 6 1 Crush 8 | 1 3 3 1 . . . . . . . . Escape Stasis 31 | . . . . 6 . 20 . . 5 . . Rewire 1 | . . . . . . . . . 1 . . Trap 59 | . . . . . 1 58 . . . . . Miscellaneous . | . . . . . . . . . . . . Route ------- -11/Scrapyard -10/Materials -9/Materials (discovered 4 exits: *Mat x3 / [*Min]) -8/Materials -8/Garrison -8/Materials (discovered 2 exits: *Fac / Gar) -8/Garrison -7/Factory (discovered 2 exits: *Fac / [*Low]) -6/Factory -6/Garrison (discovered 3 exits: *Fac x3) -6/Factory (discovered 2 exits: *Fac / [*Low]) -5/Factory History --------- Turn | Location | Event 12 | -11/Scrapyard | Discovered new exit (range 15) 129 | -11/Scrapyard | Entered Materials 309 | -10/Materials | Build established: Mutant 663 | -10/Materials | Discovered new exit (range 16) 721 | -10/Materials | Entered another Materials area 721 | -9/Materials | Evolved 2 slots: Utility x2 879 | -9/Materials | Repaired Lgt. Treads 1384 | -9/Materials | Discovered new exit (range 16) 1485 | -9/Materials | Build established: Scavenger-Mutant 1580 | -9/Materials | Discovered new exit (range 16) 1962 | -9/Materials | Discovered new exit (range 10) 2378 | -9/Materials | Repaired Adv. Beam Cannon 2547 | -9/Materials | Discovered new exit (range 10) 3089 | -9/Materials | Build established: Mutant 3125 | -9/Materials | Entered another Materials area 3125 | -8/Materials | Evolved 2 slots: Propulsion x2 3617 | -8/Materials | Identified exit to Garrison 3617 | -8/Materials | Entered Garrison 3626 | -8/Garrison | Installed Relay Interface Framework 3688 | -8/Garrison | Triggered checkpoint 3748 | -8/Garrison | Garrison Relay disabled 3757 | -8/Garrison | Build established: Scavenger-Mutant 4086 | -8/Garrison | Build established: Bothacker-Mutant 4203 | -8/Garrison | Discovered new exit (range 12) 4365 | -8/Garrison | Garrison Relay disabled 4428 | -8/Garrison | Entered Materials 4792 | -8/Materials | Lost 9 parts (1p5n2u1w) 4850 | -8/Materials | Repaired Axe 4922 | -8/Materials | Discovered new exit (range 16) 5089 | -8/Materials | Repaired Carbon-fiber Leg 5415 | -8/Materials | Identified exit to Garrison 5415 | -8/Materials | Entered Garrison 5455 | -8/Garrison | Triggered checkpoint 5549 | -8/Garrison | Garrison Relay disabled 5692 | -8/Garrison | Triggered checkpoint 5852 | -8/Garrison | Discovered new exit (range 10) 5871 | -8/Garrison | Expanded RIF knowledge: Hotswap 5940 | -8/Garrison | Triggered checkpoint 5992 | -8/Garrison | Garrison Relay disabled 6129 | -8/Garrison | Entered Factory 6129 | -7/Factory | Evolved 2 slots: Utility x2 6537 | -7/Factory | Discovered new exit (range 9) 6996 | -7/Factory | Cargo convoy interrupted 7218 | -7/Factory | Fabricated Carbon-fiber Leg (x2) 7596 | -7/Factory | Discovered new exit (range 4) 7625 | -7/Factory | Identified exit to Factory 7626 | -7/Factory | Entered another Factory area 7626 | -6/Factory | Evolved 2 slots: Propulsion x1, Utility x1 8218 | -6/Factory | Lost 4 parts (3n1u) 8286 | -6/Factory | Allied Derelicts emerged from ambush trap array 8318 | -6/Factory | Cargo convoy interrupted 8326 | -6/Factory | First assault squad dispatched 8401 | -6/Factory | Identified exit to Garrison 8401 | -6/Factory | Entered Garrison 8472 | -6/Garrison | Triggered checkpoint 8517 | -6/Garrison | Triggered checkpoint 8768 | -6/Garrison | Triggered checkpoint 8793 | -6/Garrison | Garrison Relay disabled 8829 | -6/Garrison | Discovered new exit (range 12) 8883 | -6/Garrison | Triggered checkpoint 8979 | -6/Garrison | Discovered new exit (range 14) 9040 | -6/Garrison | Triggered checkpoint 9078 | -6/Garrison | Triggered checkpoint 9183 | -6/Garrison | Lost 4 parts (1n2u1w) 9240 | -6/Garrison | Garrison Relay disabled 9367 | -6/Garrison | Discovered new exit (range 19) 9397 | -6/Garrison | Expanded RIF knowledge: Command Fork 9424 | -6/Garrison | Build established: Mutant 9436 | -6/Garrison | Triggered checkpoint 9497 | -6/Garrison | Garrison Relay disabled 9548 | -6/Garrison | Entered Factory 9756 | -6/Factory | Build established: Scavenger-Mutant 9856 | -6/Factory | Lost 3 parts (2n1u) 10069 | -6/Factory | Core integrity fell below 50% 10572 | -6/Factory | Found Hvy. Insulated Plating 10598 | -6/Factory | First assault squad dispatched 10806 | -6/Factory | Lost 4 parts (2n1u1w) 10835 | -6/Factory | Build established: Bothacker-Mutant 10950 | -6/Factory | Found Hvy. Insulated Plating 11323 | -6/Factory | Found Hvy. Reactive Plating 11416 | -6/Factory | Repaired Flexi-carbon Leg 11436 | -6/Factory | Discovered new exit (range 8) 11796 | -6/Factory | System corruption reached 10% 11868 | -6/Factory | Discovered new exit (range 9) 11882 | -6/Factory | Identified exit to Factory 11885 | -6/Factory | Entered another Factory area 11885 | -5/Factory | Evolved 2 slots: Propulsion x1, Utility x1 12215 | -5/Factory | Fabricated Carbon-fiber Leg (x2) 12473 | -5/Factory | Self-destructed Last Messages --------------- 12403_ S-27 Virus destroyed. 12407_ Acquired 5 matter. 12409_ Flexi-carbon Leg destroyed. 12412_ Acquired 5 matter. 12413_ Acquired 10 matter. 12425_ R-10 Processor collects VTOL Module. 12426_ Carbon-fiber Leg destroyed. 12431_ Destroyed VTOL Module. 12433_ Destroyed Lgt. Nuclear Core. 12435_ Critical hit (Destroy). 12435_ Carbon-fiber Leg destroyed. 12437_ ALERT: Cargo convoy en route, clear transfer corridor. 12441_ S-27 Virus destroyed. 12443_ Kicked R-10 Processor out of the way. 12449_ System corrupted: Matter fused (-6). 12449_ Acquired 6 matter. 12451_ S-27 Virus destroyed. 12454_ Axe follow-up attack on S-27 Virus. 12460_ Carbon-fiber Leg destroyed. 12464_ S-27 Virus destroyed. Map ----- +----------------------------------------------------+ | ???????????????????????????????????? | | ???????????????????????????????????? | | ???????????????????????????????????? | | ???????????????????????????????????? | | ???????????????????????????????????? | | ???????????????????????????????????? | | ???????????????????????????????????? | | ???????????????????????????????????? | | ???????????????????????????????????? | | ???????????????????????????????????? | | ???????????????????????????????????? | | ???????????????????????????????????? | | ???????????????????????????????????? | | ???????????????????????????????????? | | ???????????????????????????????????? | | ???????????????????????????????????? | | ???????????????????????????????????? | | ???????????????????????? #????????? | | ????????#+#?????????? ###??????? | | ????????# ######### ?????? | | ????????# ??????? | | ????????# ???????????? | | ????????# ?????????????????? | | ????????# #??????????????????????? | | ????##### %#??????????????????????? | | ????# =@#?######???????????????? | | ????# #####/### ???????????????? | | ????# ## %%%[# ????????????????? | | ????# ## !"%= # ????????????????? | | ????# ## " " # ?????????????????? | | ????# ## " " # ????????????????? | | ????# ## # ?????????????????? | | ????# ## # ????????????????? | | ?####+####+####+#????????????????? | | ?# # ###########??#### | | ?# # ################# | | ?# # | | ?# """ """ # | | ?# """ """ # | | ?#! """ """ + | | ?# # = | | ?# """ """ # = !! | | ?# """ """ # !% * != % ! | | ?# """ """ #######+######+##### | | ?# #????## =!=%!* # ? | | ?# #????## !""" # ? | | ?###+##+#####+#????## """" # ? | | ???????????????????## ] """" # ? | | ??????? ####???????## """" # ? | | ??????? ### ??? ##### """" # ? | +----------------------------------------------------+ Best States ------------- Heat Dissipation 92 Energy Generation 18 Energy Capacity 310 Matter Stores 300 Matter Capacity 300 Sight Range 22 Terrain Scan Density 10 Jamming Range 12 Armor Coverage 600 Resistance: KI 40 Resistance: TH 10 Resistance: EM 30 Core Shielding 20 Utility Shielding 66 Evasion (%) 55 Recoil Reduction 4 Relay Coupler Types 75 Relay Coupler Value 3 Item Schematics ----------------- Structural Scanner | -9/Materials | Scanalyzed Grenade Launcher | -9/Materials | Extracted Imp. Light Cannon | -9/Materials | Extracted Imp. Medium Laser | -9/Materials | Extracted Hcp. Storage Unit | -9/Materials | Hacked Lrg. Storage Unit | -9/Materials | Hacked Imp. Datajack | -8/Materials | Scanalyzed Carbon-fiber Leg | -8/Materials | Scanalyzed Katana | -8/Materials | Scanalyzed Heat Sink | -8/Materials | Extracted Powered Hammer | -7/Factory | Hacked Fission Core | -7/Factory | Hacked Robot Schematics ------------------ None Fabricated ------------ Carbon-fiber Leg | x2 | -7/Factory Carbon-fiber Leg | x2 | -5/Factory Alien Tech Used ----------------- None Achievements -------------- None Challenges ------------ None Game ------ Seed LinearGodHumpback Manual? 0 Play Time 03:14:55 Cumulative 253.1 hours Start 2021.06.15 @ 18:24:23 End 2021.06.16 @ 16:11:26 Sessions 7 Manual Loads 0 Difficulty Rogue Special Mode None Game No. 183 Rogue 183 Adventurer 0 Explorer 0 Win Type - Total 1 Types 1/0/0/0/0/0/0/0/0 Lore% 59 Gallery% 66 Achievement% 46 Wizard Run 0 Options --------- ASCII 0 Keyboard 0 Movement Arrows Keybinds 0 Fullscreen 1 Font 18/SmallcapsGlow Map View 76x50 Tactical HUD 1 Map Filters NONE Filters NONE Steam 1 RUN: bc2d4d12-f0df-447e-8c02-29f39384e10e